[Event "EYCC Open-U16 2019"]
[Site "Bratislava"]
[Date "2019.08.10"]
[Round "9.29"]
[White "Holly, Andrej"]
[Black "Degraeve, Remy"]
[Result "0-1"]
[ECO "A14"]
[WhiteElo "2046"]
[BlackElo "2349"]
[Annotator "RC"]
[PlyCount "140"]
[EventDate "2019.08.02"]
[EventType "swiss"]
[EventCountry "SVK"]
[SourceTitle "playchess.com"]
[Source "ChessBase"]
[SourceQuality "1"]
[TimeControl "40/5400+30:1800+30"]

1. c4 {[%emt 0:00:00]} Nf6 {[%emt 0:00:00]} 2. g3 {[%emt 0:00:00]} e6 {[%emt 0:00:02]} 3. Bg2 {[%emt 0:00:00]} d5 {[%emt 0:00:06]} 4. Nf3 {[%emt 0:00:16]} Be7 {[%emt 0:00:04]} 5. O-O {[%emt 0:00:58]} O-O {[%emt 0:00:04]} 6. d3 {[%emt 0:02:31]} b6 {[%emt 0:01:03]} 7. b3 {[%emt 0:00:41]} Bb7 {[%emt 0:00:25]} 8. Bb2 {[%emt 0:00:17]} c5 {[%emt 0:00:43]} 9. e3 {[%emt 0:02:38]} Nc6 {[%emt 0:04:27]} 10. Qe2 {[%emt 0:01:36]} Qc7 {[%emt 0:01:16]} 11. Nbd2 {[%emt 0:02:12]} Rad8 {[%emt 0:00:37]} 12. Ne1 {[%emt 0:03:48]} Rd7 {[%emt 0:05:04]} 13. f4 {[%emt 0:07:27]} Rfd8 {[%emt 0:01:29]} 14. a3 {[%emt 0:06:52]} a6 {[%emt 0:02:25]} 15. g4 {[%emt 0:05:48]} Ne8 {[%emt 0:05:50]} 16. g5 {[%emt 0:07:39]} f5 {[%emt 0:01:27]} 17. Qh5 {[%emt 0:11:56]} g6 {[%emt 0:01:09]} 18. Qe2 {[%emt 0:00:47]} Bf8 {[%emt 0:01:20]} 19. Ndf3 {[%emt 0:05:59]} Bg7 {[%emt 0:01:02]} 20. Bxg7 {[%emt 0:05:33]} Nxg7 {[%emt 0:00:02]} 21. Nc2 {[%emt 0:01:00]} dxc4 {[%emt 0:00:46]} 22. dxc4 {[%emt 0:00:50]} e5 {[%emt 0:00:14]} 23. Rfd1 {[%emt 0:08:03]} e4 {[%emt 0:01:14]} 24. Nfe1 {[%emt 0:00:27]} Na5 {[%emt 0:02:13]} 25. Rxd7 {[%emt 0:03:37]} Rxd7 {[%emt 0:00:40]} 26. Rb1 {[%emt 0:03:05]} Ne6 {[%emt 0:00:37]} 27. Bf1 {[%emt 0:01:59]} Qd8 {[%emt 0:00:38]} 28. b4 {[%emt 0:04:31]} Rd2 {[%emt 0:04:19]} 29. bxa5 {[%emt 0:00:31]} Rxe2 {[%emt 0:00:02]} 30. Bxe2 {[%emt 0:00:06]} b5 {[%emt 0:00:02]} 31. cxb5 {[%emt 0:02:34]} Qxa5 {[%emt 0:00:06]} 32. bxa6 {[%emt 0:03:58]} Bxa6 {[%emt 0:00:23]} 33. Rb8+ {[%emt 0:01:13]} Kf7 {[%emt 0:00:14]} 34. Ra8 {[%emt 0:00:37]} Nc7 {[%emt 0:00:05]} 35. Ra7 {[%emt 0:00:47]} Ke6 {[%emt 0:00:26]} 36. Bxa6 {[%emt 0:02:03]} Nxa6 {[%emt 0:00:02]} 37. Rxh7 {[%emt 0:00:17]} Nc7 {[%emt 0:00:39]} 38. Rg7 {[%emt 0:01:27]} Nd5 {[%emt 0:00:05]} 39. Rxg6+ {[%emt 0:00:37]} Kf7 {[%emt 0:00:03]} 40. Rd6 {[%emt 0:00:00]} Nxe3 {[%emt 0:00:00]} 41. Kf2 {[%emt 0:05:45]} Nxc2 {[%emt 0:00:27]} 42. Nxc2 {[%emt 0:00:02]} c4 {[%emt 0:00:38]} 43. Ne3 {[%emt 0:01:45]} c3 {[%emt 0:00:26]} 44. g6+ {[%emt 0:07:51]} Kg8 {[%emt 0:00:23]} 45. Rc6 {[%emt 0:03:32]} Qd8 {[%emt 0:02:44]} 46. Nxf5 {[%emt 0:07:01]} Qd7 {[%emt 0:01:13]} 47. Ne7+ {[%emt 0:09:03]} Qxe7 {[%emt 0:00:23]} 48. Rxc3 {[%emt 0:00:19]} Qh4+ {[%emt 0:00:06]} 49. Ke2 {[%emt 0:02:56]} Qxh2+ {[%emt 0:00:09]} 50. Ke3 {[%emt 0:00:50]} Qg2 {[%emt 0:00:30]} 51. f5 {[%emt 0:01:06]} Qf3+ {[%emt 0:00:23]} 52. Kd4 {[%emt 0:00:03]} Qxf5 {[%emt 0:00:05]} 53. Re3 {[%emt 0:00:19]} Qxg6 {[%emt 0:00:08]} 54. Rxe4 {[%emt 0:00:14]} Qd6+ {[%emt 0:00:03]} 55. Ke3 {[%emt 0:00:20]} Kf7 {[%emt 0:00:16]} 56. Rf4+ {[%emt 0:00:08]} Ke6 {[%emt 0:00:05]} 57. a4 {[%emt 0:00:43]} Ke5 {[%emt 0:00:04]} 58. Re4+ {[%emt 0:00:17]} Kf5 {[%emt 0:00:03]} 59. Rd4 {[%emt 0:00:30]} Qa3+ {[%emt 0:00:15]} 60. Rd3 {[%emt 0:00:17]} Qc5+ {[%emt 0:00:05]} 61. Kd2 {[%emt 0:00:13]} Ke4 {[%emt 0:00:37]} 62. a5 {[%emt 0:00:39]} Qb4+ {[%emt 0:00:12]} 63. Kc2 {[%emt 0:00:43]} Qc4+ {[%emt 0:00:03]} 64. Rc3 {[%emt 0:00:04]} Qa2+ {[%emt 0:00:04]} 65. Kd1 {[%emt 0:00:24]} Kd4 {[%emt 0:00:10]} 66. Rc2 {[%emt 0:00:11]} Qb3 {[%emt 0:00:09]} 67. Kc1 {[%emt 0:00:50]} Kd3 {[%emt 0:00:13]} 68. Rd2+ {[%emt 0:00:06]} Kc3 {[%emt 0:00:07]} 69. a6 {[%emt 0:00:29]} Qa4 {[%emt 0:00:03]} 70. Rb2 {[%emt 0:00:30]} Qa3 {[%emt 0:00:02]} 0-1

[Event "EYCC Open-U16 2019"]
[Site "Bratislava"]
[Date "2019.08.10"]
[Round "9.30"]
[White "Vitenberg, Noam Aviv"]
[Black "Minko, Dmitry"]
[Result "0-1"]
[ECO "D31"]
[WhiteElo "2300"]
[BlackElo "2061"]
[Annotator "RC"]
[PlyCount "92"]
[EventDate "2019.08.02"]
[EventType "swiss"]
[EventCountry "SVK"]
[SourceTitle "playchess.com"]
[Source "ChessBase"]
[SourceQuality "1"]
[TimeControl "40/5400+30:1800+30"]

1. d4 {[%emt 0:00:00]} d5 {[%emt 0:00:00]} 2. c4 {[%emt 0:00:00]} e6 {[%emt 0:00:00]} 3. Nc3 {[%emt 0:00:01]} Be7 {[%emt 0:00:00]} 4. cxd5 {[%emt 0:00:33]} exd5 {[%emt 0:00:02]} 5. Bf4 {[%emt 0:00:09]} Nf6 {[%emt 0:01:07]} 6. e3 {[%emt 0:00:19]} c6 {[%emt 0:00:06]} 7. Bd3 {[%emt 0:01:18]} Bg4 {[%emt 0:01:29]} 8. f3 {[%emt 0:07:09]} Bh5 {[%emt 0:00:07]} 9. Nge2 {[%emt 0:00:57]} Bg6 {[%emt 0:00:10]} 10. e4 {[%emt 0:08:25]} dxe4 {[%emt 0:02:05]} 11. fxe4 {[%emt 0:05:50]} O-O {[%emt 0:00:40]} 12. O-O {[%emt 0:01:25]} Na6 {[%emt 0:01:05]} 13. Bxa6 {[%emt 0:11:10]} bxa6 {[%emt 0:00:07]} 14. Ng3 {[%emt 0:03:43]} Re8 {[%emt 0:07:34]} 15. Rc1 {[%emt 0:07:07]} Qb6 {[%emt 0:02:57]} 16. Rf2 {[%emt 0:12:55]} Rad8 {[%emt 0:07:39]} 17. Be5 {[%emt 0:06:50]} Bc5 {[%emt 0:13:05]} 18. Nd5 {[%emt 0:18:21]} Nxd5 {[%emt 0:19:05]} 19. dxc5 {[%emt 0:00:35]} Qa5 {[%emt 0:04:21]} 20. Bd6 {[%emt 0:03:26]} Bxe4 {[%emt 0:01:32]} 21. a3 {[%emt 0:01:55]} Bg6 {[%emt 0:00:50]} 22. h4 {[%emt 0:00:59]} h5 {[%emt 0:10:33]} 23. Nxh5 {[%emt 0:02:59]} Re4 {[%emt 0:00:13]} 24. Ng3 {[%emt 0:01:50]} Rxh4 {[%emt 0:02:23]} 25. b4 {[%emt 0:02:21]} Qxa3 {[%emt 0:00:22]} 26. Rf3 {[%emt 0:01:43]} Qxb4 {[%emt 0:02:05]} 27. Be7 {[%emt 0:00:29]} Rd4 {[%emt 0:00:23]} 28. Bxd8 {[%emt 0:00:28]} Rxd1+ {[%emt 0:00:06]} 29. Rxd1 {[%emt 0:00:04]} Qxc5+ {[%emt 0:00:06]} 30. Kh1 {[%emt 0:01:12]} a5 {[%emt 0:05:25]} 31. Re1 {[%emt 0:00:23]} f6 {[%emt 0:00:48]} 32. Nf5 {[%emt 0:00:39]} Qb4 {[%emt 0:01:48]} 33. Ne7+ {[%emt 0:00:38]} Kf7 {[%emt 0:00:07]} 34. Re5 {[%emt 0:00:34]} Qh4+ {[%emt 0:00:35]} 35. Rh3 {[%emt 0:00:25]} Qd4 {[%emt 0:03:17]} 36. Re1 {[%emt 0:00:32]} Qd2 {[%emt 0:00:29]} 37. Rf1 {[%emt 0:00:34]} Be4 {[%emt 0:01:00]} 38. Rg3 {[%emt 0:00:21]} Nf4 {[%emt 0:01:17]} 39. Bxa5 {[%emt 0:00:25]} Qxa5 {[%emt 0:05:43]} 40. Rxf4 {[%emt 0:00:00]} Qe1+ {[%emt 0:00:00]} 41. Kh2 {[%emt 0:00:58]} Kxe7 {[%emt 0:01:41]} 42. Rxg7+ {[%emt 0:01:33]} Ke6 {[%emt 0:00:09]} 43. Rg8 {[%emt 0:07:05]} f5 {[%emt 0:01:40]} 44. Re8+ {[%emt 0:04:17]} Kf6 {[%emt 0:00:17]} 45. Rf3 {[%emt 0:03:12]} Qe2 {[%emt 0:00:33]} 46. Rg3 {[%emt 0:00:46]} Qh5+ {[%emt 0:00:09]} 0-1

[Event "EYCC Open-U16 2019"]
[Site "Bratislava"]
[Date "2019.08.10"]
[Round "9.34"]
[White "Vadila, Ondrej"]
[Black "Kochavi, Ori"]
[Result "1/2-1/2"]
[ECO "A45"]
[WhiteElo "2048"]
[BlackElo "2153"]
[Annotator "RC"]
[PlyCount "136"]
[EventDate "2019.08.02"]
[EventType "swiss"]
[EventCountry "SVK"]
[SourceTitle "playchess.com"]
[Source "ChessBase"]
[SourceQuality "1"]
[TimeControl "40/5400+30:1800+30"]

1. d4 {[%emt 0:00:00]} Nf6 {[%emt 0:00:00]} 2. Bf4 {[%emt 0:00:00]} d5 {[%emt 0:00:00]} 3. e3 {[%emt 0:00:00]} c5 {[%emt 0:00:17]} 4. c3 {[%emt 0:00:00]} Nc6 {[%emt 0:00:20]} 5. Nd2 {[%emt 0:00:07]} Bf5 {[%emt 0:00:38]} 6. Qb3 {[%emt 0:05:06]} Qb6 {[%emt 0:00:11]} 7. dxc5 {[%emt 0:04:15]} Qxb3 {[%emt 0:00:39]} 8. axb3 {[%emt 0:03:38]} e5 {[%emt 0:00:23]} 9. Bg3 {[%emt 0:00:05]} Bxc5 {[%emt 0:00:09]} 10. b4 {[%emt 0:04:41]} Bd6 {[%emt 0:00:06]} 11. Ngf3 {[%emt 0:01:03]} Nd7 {[%emt 0:02:01]} 12. Be2 {[%emt 0:17:22]} O-O {[%emt 0:11:03]} 13. O-O {[%emt 0:01:46]} f6 {[%emt 0:13:06]} 14. Ra2 {[%emt 0:11:56]} Bc7 {[%emt 0:01:24]} 15. Nd4 {[%emt 0:09:45]} Nxd4 {[%emt 0:10:08]} 16. exd4 {[%emt 0:06:03]} Rfc8 {[%emt 0:01:29]} 17. Nb3 {[%emt 0:03:20]} Re8 {[%emt 0:09:29]} 18. Bb5 {[%emt 0:10:04]} a6 {[%emt 0:08:39]} 19. Bxd7 {[%emt 0:05:31]} Bxd7 {[%emt 0:00:05]} 20. Rd1 {[%emt 0:00:28]} Bb5 {[%emt 0:02:27]} 21. dxe5 {[%emt 0:02:02]} fxe5 {[%emt 0:00:12]} 22. Nc5 {[%emt 0:01:13]} b6 {[%emt 0:03:58]} 23. Nd3 {[%emt 0:00:11]} Re7 {[%emt 0:12:10]} 24. b3 {[%emt 0:06:42]} Rae8 {[%emt 0:01:42]} 25. Ne1 {[%emt 0:00:43]} Rd7 {[%emt 0:04:46]} 26. Rad2 {[%emt 0:01:41]} Bc6 {[%emt 0:00:17]} 27. Nf3 {[%emt 0:00:49]} Bb7 {[%emt 0:02:13]} 28. Re1 {[%emt 0:01:09]} e4 {[%emt 0:02:59]} 29. Nd4 {[%emt 0:00:42]} Bd8 {[%emt 0:00:03]} 30. h4 {[%emt 0:01:29]} Bf6 {[%emt 0:00:09]} 31. Re3 {[%emt 0:00:56]} g6 {[%emt 0:02:06]} 32. Kh2 {[%emt 0:01:09]} Bg7 {[%emt 0:00:21]} 33. Bf4 {[%emt 0:00:08]} Bf6 {[%emt 0:04:14]} 34. g3 {[%emt 0:00:25]} Rf7 {[%emt 0:00:39]} 35. Ne2 {[%emt 0:00:58]} Kg7 {[%emt 0:00:50]} 36. c4 {[%emt 0:01:09]} h6 {[%emt 0:00:47]} 37. c5 {[%emt 0:00:53]} g5 {[%emt 0:01:41]} 38. hxg5 {[%emt 0:00:04]} hxg5 {[%emt 0:00:04]} 39. Bd6 {[%emt 0:00:07]} b5 {[%emt 0:00:30]} 40. Kg2 {[%emt 0:00:00]} Ra8 {[%emt 0:00:00]} 41. Nd4 {[%emt 0:12:19]} Bxd4 {[%emt 0:03:56]} 42. Rxd4 {[%emt 0:00:05]} a5 {[%emt 0:00:23]} 43. bxa5 {[%emt 0:04:26]} Rxa5 {[%emt 0:00:07]} 44. Rd2 {[%emt 0:01:33]} Kf6 {[%emt 0:01:38]} 45. f4 {[%emt 0:08:56]} gxf4 {[%emt 0:00:28]} 46. gxf4 {[%emt 0:00:34]} Rg7+ {[%emt 0:04:19]} 47. Kh2 {[%emt 0:00:43]} Rh7+ {[%emt 0:01:25]} 48. Kg2 {[%emt 0:01:37]} Ra8 {[%emt 0:01:11]} 49. Be5+ {[%emt 0:01:34]} Kf5 {[%emt 0:00:44]} 50. Rg3 {[%emt 0:00:33]} Rh6 {[%emt 0:06:46]} 51. Rg5+ {[%emt 0:01:34]} Ke6 {[%emt 0:00:06]} 52. Bg7 {[%emt 0:01:35]} Rh7 {[%emt 0:02:52]} 53. f5+ {[%emt 0:00:45]} Kf7 {[%emt 0:00:02]} 54. Bd4 {[%emt 0:00:33]} e3 {[%emt 0:07:15]} 55. Re2 {[%emt 0:00:41]} Re8 {[%emt 0:00:03]} 56. Rg6 {[%emt 0:01:17]} Re4 {[%emt 0:03:44]} 57. Rf6+ {[%emt 0:00:59]} Ke7 {[%emt 0:00:18]} 58. Re6+ {[%emt 0:01:03]} Rxe6 {[%emt 0:00:07]} 59. fxe6 {[%emt 0:00:05]} Rh4 {[%emt 0:00:20]} 60. Bxe3 {[%emt 0:00:42]} d4+ {[%emt 0:00:27]} 61. Kg3 {[%emt 0:00:05]} Re4 {[%emt 0:00:04]} 62. Bg5+ {[%emt 0:00:06]} Kxe6 {[%emt 0:00:12]} 63. Rxe4+ {[%emt 0:00:04]} Bxe4 {[%emt 0:00:17]} 64. Kf4 {[%emt 0:00:27]} Bc6 {[%emt 0:00:59]} 65. Bh6 {[%emt 0:00:34]} b4 {[%emt 0:01:22]} 66. Bg7 {[%emt 0:00:40]} Kd5 {[%emt 0:00:08]} 67. Bf8 {[%emt 0:00:04]} Bb5 {[%emt 0:00:08]} 68. c6 {[%emt 0:00:08]} Bxc6 1/2-1/2

[Event "EYCC Open-U16 2019"]
[Site "Bratislava"]
[Date "2019.08.10"]
[Round "9.36"]
[White "Iliaguev, Daniel"]
[Black "Sargsyan, Sargis Vach."]
[Result "1/2-1/2"]
[ECO "A00"]
[WhiteElo "2053"]
[BlackElo "1923"]
[Annotator "NA RC"]
[PlyCount "267"]
[EventDate "2019.08.02"]
[EventType "swiss"]
[EventCountry "SVK"]
[SourceTitle "playchess.com"]
[Source "ChessBase"]
[SourceQuality "1"]
[TimeControl "40/5400+30:1800+30"]

1. g3 {[%emt 0:00:00]} Nf6 {[%emt 0:00:00]} 2. Bg2 {[%emt 0:00:00]} d5 {[%emt 0:00:00]} 3. Nf3 {[%emt 0:00:00]} c6 {[%emt 0:00:00]} 4. O-O {[%emt 0:00:00]} Bf5 {[%emt 0:00:00]} 5. d3 {[%emt 0:00:41]} h6 {[%emt 0:00:00]} 6. Nbd2 {[%emt 0:00:51]} e6 {[%emt 0:00:04]} 7. b3 {[%emt 0:00:45]} Be7 {[%emt 0:00:06]} 8. Bb2 {[%emt 0:00:07]} O-O {[%emt 0:00:05]} 9. Re1 {[%emt 0:00:16]} Bh7 {[%emt 0:01:01]} 10. e4 {[%emt 0:00:36]} Nbd7 {[%emt 0:01:11]} 11. Qe2 {[%emt 0:04:11]} dxe4 {[%emt 0:03:10]} 12. dxe4 {[%emt 0:01:55]} Qb6 {[%emt 0:01:07]} 13. e5 {[%emt 0:21:39]} Nd5 {[%emt 0:00:24]} 14. Ne4 {[%emt 0:00:06]} Bxe4 {[%emt 0:07:23]} 15. Qxe4 {[%emt 0:00:13]} Bb4 {[%emt 0:00:01]} 16. Rf1 {[%emt 0:03:49]} Bc3 {[%emt 0:01:54]} 17. Bxc3 {[%emt 0:01:35]} Nxc3 {[%emt 0:00:01]} 18. Qh4 {[%emt 0:01:11]} Rfd8 {[%emt 0:01:56]} 19. Rae1 {[%emt 0:00:37]} Nf8 {[%emt 0:02:20]} 20. Qc4 {[%emt 0:14:04]} Nb5 {[%emt 0:02:41]} 21. Re4 {[%emt 0:00:54]} Rd5 {[%emt 0:01:48]} 22. Rg4 {[%emt 0:02:21]} Rad8 {[%emt 0:01:16]} 23. Qf4 {[%emt 0:02:06]} Ng6 {[%emt 0:00:05]} 24. Rxg6 {[%emt 0:00:05]} fxg6 {[%emt 0:00:01]} 25. Qg4 {[%emt 0:07:37]} Nc7 {[%emt 0:16:25]} 26. Qxg6 {[%emt 0:05:44]} Rd1 {[%emt 0:05:41]} 27. g4 {[%emt 0:04:54]} Qb4 {[%emt 0:02:25]} 28. c4 {[%emt 0:05:44]} Qc3 {[%emt 0:03:53]} 29. Qe4 {[%emt 0:02:19]} Qd3 {[%emt 0:04:20]} 30. Ne1 {[%emt 0:04:25]} Qxe4 {[%emt 0:00:31]} 31. Bxe4 {[%emt 0:00:02]} R8d2 {[%emt 0:00:38]} 32. Nc2 {[%emt 0:00:25]} g5 {[%emt 0:02:04]} 33. Rxd1 {[%emt 0:02:54]} Rxd1+ {[%emt 0:00:08]} 34. Kg2 {[%emt 0:00:08]} a5 {[%emt 0:00:27]} 35. a3 {[%emt 0:05:02]} Kf7 {[%emt 0:02:16]} 36. Kf3 {[%emt 0:03:29]} Rb1 {[%emt 0:04:07]} 37. b4 {[%emt 0:00:08]} axb4 {[%emt 0:00:03]} 38. axb4 {[%emt 0:00:03]} Na6 {[%emt 0:00:37]} 39. b5 {[%emt 0:00:42]} cxb5 {[%emt 0:00:03]} 40. Nd4 {[%emt 0:00:00]} Rb2 {[%emt 0:00:00]} 41. Nxb5 {[%emt 0:09:19]} Nc5 {[%emt 0:03:13]} 42. Nd6+ {[%emt 0:00:04]} Ke7 {[%emt 0:00:10]} 43. Kg2 {[%emt 0:06:40]} b6 {[%emt 0:00:47]} 44. Nc8+ {[%emt 0:03:46]} Kf8 {[%emt 0:00:26]} 45. Bc6 {[%emt 0:00:08]} Nd3 {[%emt 0:00:38]} 46. Bb5 {[%emt 0:00:28]} Nxf2 {[%emt 0:00:42]} 47. Kf3 {[%emt 0:00:52]} Nd3 {[%emt 0:00:20]} 48. h3 {[%emt 0:05:42]} Rb3 {[%emt 0:01:46]} 49. Nxb6 {[%emt 0:00:02]} Nxe5+ {[%emt 0:00:08]} 50. Ke4 {[%emt 0:00:02]} Nf7 {[%emt 0:02:03]} 51. Nc8 {[%emt 0:01:07]} Rxh3 {[%emt 0:03:59]} 52. Bd7 {[%emt 0:03:20]} Nd8 {[%emt 0:00:52]} 53. Kd4 {[%emt 0:04:28]} Rg3 {[%emt 0:03:04]} 54. c5 {[%emt 0:00:01]} Rxg4+ {[%emt 0:00:08]} 55. Kc3 {[%emt 0:00:46]} h5 {[%emt 0:01:55]} 56. c6 {[%emt 0:00:11]} Nxc6 {[%emt 0:00:03]} 57. Bxc6 {[%emt 0:00:02]} h4 {[%emt 0:00:12]} 58. Nd6 {[%emt 0:01:48]} Rf4 {[%emt 0:00:41]} 59. Kd3 {[%emt 0:01:43]} Kg7 {[%emt 0:03:16]} 60. Ke3 {[%emt 0:00:11]} e5 {[%emt 0:00:28]} 61. Bd7 {[%emt 0:02:30]} Kf6 {[%emt 0:02:58]} 62. Ne4+ {[%emt 0:01:58]} Kg6 {[%emt 0:00:04]} 63. Nf2 {[%emt 0:00:15]} Rd4 {[%emt 0:01:56]} 64. Bg4 {[%emt 0:00:13]} Ra4 {[%emt 0:00:28]} 65. Kf3 {[%emt 0:01:34]} Ra3+ {[%emt 0:00:14]} 66. Ke4 {[%emt 0:01:00]} Rg3 {[%emt 0:02:05]} 67. Bd7 {[%emt 0:00:07]} Rg2 {[%emt 0:02:02]} 68. Kf3 {[%emt 0:02:22]} Rg1 {[%emt 0:00:13]} 69. Bg4 {[%emt 0:00:46]} Kh6 {[%emt 0:01:51]} 70. Bd7 {[%emt 0:00:11]} Kg6 {[%emt 0:00:10]} 71. Bg4 {[%emt 0:00:06]} Re1 {[%emt 0:00:08]} 72. Bh3 {[%emt 0:00:19]} Rg1 {[%emt 0:00:21]} 73. Bg4 {[%emt 0:00:17]} Rb1 {[%emt 0:00:00]} 74. Bd7 {[%emt 0:01:30]} Rb7 {[%emt 0:00:00]} 75. Bg4 {[%emt 0:00:26]} Rf7+ {[%emt 0:00:00]} 76. Ke3 {[%emt 0:00:18]} Rf4 {[%emt 0:00:00]} 77. Bd7 {[%emt 0:00:31]} Kf6 {[%emt 0:00:00]} 78. Bh3 {[%emt 0:00:55]} Kf7 {[%emt 0:01:15]} 79. Bg4 {[%emt 0:00:19]} Rd4 {[%emt 0:01:22]} 80. Bh3 {[%emt 0:00:05]} Kg6 {[%emt 0:00:11]} 81. Bg4 {[%emt 0:01:34]} Ra4 {[%emt 0:01:22]} 82. Bd7 {[%emt 0:00:33]} Rb4 {[%emt 0:00:15]} 83. Kf3 {[%emt 0:00:16]} Rb7 {[%emt 0:00:42]} 84. Bg4 {[%emt 0:00:40]} Rb3+ {[%emt 0:00:52]} 85. Ke4 {[%emt 0:00:15]} Rb4+ {[%emt 0:00:32]} 86. Ke3 {[%emt 0:00:34]} Rd4 {[%emt 0:00:31]} 87. Be6 {[%emt 0:00:43]} Rf4 {[%emt 0:00:22]} 88. Bd7 {[%emt 0:00:04]} Rb4 {[%emt 0:00:21]} 89. Be6 {[%emt 0:00:25]} Rb1 {[%emt 0:00:17]} 90. Bg4 {[%emt 0:00:40]} Re1+ {[%emt 0:00:10]} 91. Kd2 {[%emt 0:00:45]} Rg1 {[%emt 0:00:05]} 92. Ke3 {[%emt 0:00:06]} Kf6 {[%emt 0:00:04]} 93. Ne4+ {[%emt 0:00:16]} Ke7 {[%emt 0:00:03]} 94. Nf2 {[%emt 0:01:07]} Kd6 {[%emt 0:00:17]} 95. Bf5 {[%emt 0:00:48]} Kd5 {[%emt 0:00:20]} 96. Be4+ {[%emt 0:00:14]} Kc5 {[%emt 0:00:38]} 97. Bf5 {[%emt 0:00:07]} Re1+ {[%emt 0:00:08]} 98. Kd2 {[%emt 0:00:33]} Rf1 {[%emt 0:00:04]} 99. Ke3 {[%emt 0:00:37]} Re1+ {[%emt 0:00:19]} 100. Kd2 {[%emt 0:00:02]} Ra1 {[%emt 0:00:13]} 101. Ke3 {[%emt 0:01:13]} Ra4 {[%emt 0:01:02]} 102. Ne4+ {[%emt 0:00:07]} Kc6 {[%emt 0:00:16]} 103. Nxg5 {[%emt 0:00:30]} Rf4 {[%emt 0:00:10]} 104. Be4+ {[%emt 0:00:42]} Kd6 {[%emt 0:00:02]} 105. Bf3 {[%emt 0:00:24]} Ra4 {[%emt 0:00:12]} 106. Ne4+ {[%emt 0:00:12]} Ke7 {[%emt 0:00:04]} 107. Kf2 {[%emt 0:01:15]} Ra2+ {[%emt 0:00:06]} 108. Kg1 {[%emt 0:00:33]} Ke6 {[%emt 0:00:13]} 109. Bg4+ {[%emt 0:00:05]} Kf7 {[%emt 0:00:09]} 110. Bh3 {[%emt 0:00:50]} Rb2 {[%emt 0:00:20]} 111. Bf5 {[%emt 0:00:14]} Kg7 {[%emt 0:00:09]} 112. Kh1 {[%emt 0:00:46]} Kf7 {[%emt 0:00:16]} 113. Kg1 {[%emt 0:00:06]} Ke7 {[%emt 0:00:05]} 114. Kh1 {[%emt 0:00:35]} Kf7 {[%emt 0:00:11]} 115. Kg1 {[%emt 0:00:38]} Kg7 {[%emt 0:00:03]} 116. Kh1 {[%emt 0:00:06]} Kh6 {[%emt 0:00:03]} 117. Bg4 {[%emt 0:00:32]} Kg6 {[%emt 0:00:04]} 118. Kg1 {[%emt 0:00:34]} Rb4 {[%emt 0:00:04]} 119. Bf3 {[%emt 0:00:18]} Kf5 {[%emt 0:00:04]} 120. Nf2 {[%emt 0:00:26]} Rb1+ {[%emt 0:00:13]} 121. Kg2 {[%emt 0:00:08]} Rb2 {[%emt 0:00:02]} 122. Kg1 {[%emt 0:00:37]} Ra2 {[%emt 0:00:24]} 123. Bd5 {[%emt 0:00:45]} Rd2 {[%emt 0:00:14]} 124. Bc6 {[%emt 0:00:52]} Kf4 {[%emt 0:00:04]} 125. Bb7 {[%emt 0:00:23]} h3 {[%emt 0:00:46]} 126. Ne4 {[%emt 0:00:37]} Rb2 {[%emt 0:00:59]} 127. Bc6 {[%emt 0:00:16]} Re2 {[%emt 0:00:40]} 128. Nf6 {[%emt 0:01:02]} h2+ {[%emt 0:02:14]} 129. Kh1 {[%emt 0:00:02]} Kg5 {[%emt 0:00:35]} 130. Ne4+ {[%emt 0:00:46]} Kh4 {[%emt 0:00:10]} 131. Nf6 {[%emt 0:00:39]} Rd2 {[%emt 0:00:43]} 132. Bg2 {[%emt 0:00:12]} Rf2 {[%emt 0:00:27]} 133. Ne4 {[%emt 0:00:14]} Rxg2 {[%emt 0:00:04]} 134. Kxg2 {[%emt 0:00:04]} 1/2-1/2

[Event "EYCC Open-U16 2019"]
[Site "Bratislava"]
[Date "2019.08.10"]
[Round "9.38"]
[White "Karadzhov, Ivan"]
[Black "Grutter, Tim"]
[Result "0-1"]
[ECO "E61"]
[WhiteElo "2023"]
[BlackElo "2091"]
[Annotator "NA RC"]
[PlyCount "104"]
[EventDate "2019.08.02"]
[EventType "swiss"]
[EventCountry "SVK"]
[SourceTitle "playchess.com"]
[Source "ChessBase"]
[SourceQuality "1"]
[TimeControl "40/5400+30:1800+30"]

1. d4 {[%emt 0:00:00]} Nf6 {[%emt 0:00:00]} 2. c4 {[%emt 0:00:05]} g6 {[%emt 0:00:00]} 3. Nc3 {[%emt 0:00:15]} Bg7 {[%emt 0:00:00]} 4. Nf3 {[%emt 0:00:15]} O-O {[%emt 0:00:00]} 5. Bg5 {[%emt 0:00:23]} c5 {[%emt 0:00:00]} 6. e3 {[%emt 0:00:51]} cxd4 {[%emt 0:00:04]} 7. Nxd4 {[%emt 0:02:23]} Nc6 {[%emt 0:01:06]} 8. Be2 {[%emt 0:02:42]} Nxd4 {[%emt 0:00:45]} 9. exd4 {[%emt 0:03:39]} d5 {[%emt 0:01:04]} 10. O-O {[%emt 0:03:44]} Be6 {[%emt 0:04:15]} 11. c5 {[%emt 0:05:10]} Ne4 {[%emt 0:03:54]} 12. Bh4 {[%emt 0:04:35]} b6 {[%emt 0:22:09]} 13. c6 {[%emt 0:08:53]} Nxc3 {[%emt 0:04:12]} 14. bxc3 {[%emt 0:00:17]} Qc7 {[%emt 0:08:40]} 15. Qa4 {[%emt 0:03:28]} f5 {[%emt 0:09:20]} 16. Rfd1 {[%emt 0:16:18]} h6 {[%emt 0:04:47]} 17. f3 {[%emt 0:02:12]} g5 {[%emt 0:00:43]} 18. Bf2 {[%emt 0:00:37]} Kh8 {[%emt 0:02:37]} 19. Rac1 {[%emt 0:09:53]} a6 {[%emt 0:02:47]} 20. c4 {[%emt 0:01:46]} Rfd8 {[%emt 0:07:01]} 21. cxd5 {[%emt 0:08:11]} Bxd5 {[%emt 0:00:14]} 22. Qc2 {[%emt 0:00:34]} e6 {[%emt 0:01:45]} 23. Bg3 {[%emt 0:07:04]} f4 {[%emt 0:00:18]} 24. Bf2 {[%emt 0:00:13]} Rd6 {[%emt 0:01:45]} 25. Qg6 {[%emt 0:06:10]} Rxc6 {[%emt 0:02:01]} 26. Bd3 {[%emt 0:01:54]} Kg8 {[%emt 0:00:05]} 27. Rxc6 {[%emt 0:01:26]} Qxc6 {[%emt 0:00:05]} 28. h4 {[%emt 0:01:22]} Qe8 {[%emt 0:04:10]} 29. Qh7+ {[%emt 0:01:18]} Kf8 {[%emt 0:00:03]} 30. hxg5 {[%emt 0:00:30]} hxg5 {[%emt 0:00:08]} 31. Bg6 {[%emt 0:01:19]} Qd8 {[%emt 0:03:17]} 32. Be1 {[%emt 0:04:23]} a5 {[%emt 0:00:13]} 33. Bc3 {[%emt 0:00:59]} Rc8 {[%emt 0:00:47]} 34. Bb2 {[%emt 0:00:37]} b5 {[%emt 0:00:36]} 35. Kh2 {[%emt 0:02:38]} Qf6 {[%emt 0:01:17]} 36. Be4 {[%emt 0:01:08]} Ke7 {[%emt 0:01:42]} 37. Qg6 {[%emt 0:00:31]} Qxg6 {[%emt 0:01:23]} 38. Bxg6 {[%emt 0:00:07]} b4 {[%emt 0:01:45]} 39. Kg1 {[%emt 0:00:43]} a4 {[%emt 0:01:02]} 40. a3 {[%emt 0:00:00]} b3 {[%emt 0:00:00]} 41. Bd3 {[%emt 0:05:06]} Kd6 {[%emt 0:04:49]} 42. Re1 {[%emt 0:01:51]} Rc7 {[%emt 0:03:21]} 43. Kf2 {[%emt 0:05:24]} Bc4 {[%emt 0:02:43]} 44. Bg6 {[%emt 0:00:51]} Bf6 {[%emt 0:03:35]} 45. Bb1 {[%emt 0:04:19]} Rc8 {[%emt 0:03:12]} 46. Rh1 {[%emt 0:05:33]} Rh8 {[%emt 0:00:26]} 47. Rc1 {[%emt 0:00:33]} Bd5 {[%emt 0:02:22]} 48. Re1 {[%emt 0:00:46]} g4 {[%emt 0:00:59]} 49. Rg1 {[%emt 0:02:59]} Rh2 {[%emt 0:02:00]} 50. fxg4 {[%emt 0:03:17]} Bh4+ {[%emt 0:00:33]} 51. Ke2 {[%emt 0:00:45]} f3+ {[%emt 0:00:45]} 52. Ke3 {[%emt 0:00:25]} Rxg2 {[%emt 0:00:36]} 0-1